bitfinex-derivatives/quotes_BNBF0:USTF0_20250112
["timestamp","ask_amount","ask_price","bid_price","bid_amount"]
[1736716882322,0.26459305,695.05,693.62,3.11495797]
[1736716882522,1.07092606,695.16,693.62,3.11495797]
[1736716882722,0.26458695,695.15,693.62,3.11495797]
[1736716883122,0.26458695,695.15,693.63,2.99884964]
[1736716883324,0.26458695,695.15,693.64,2.82661565]
[1736716884322,0.26460415,695.14,693.64,2.82661565]
[1736716884624,1.33553021,695.13,693.64,2.82661565]
[1736716884919,0.26460415,695.12,693.66,0.28832569]
[1736716885117,0.26459232,695.11,693.66,0.28832569]
[1736716885319,0.26459232,695.1,693.66,1.37299549]
[1736716885519,0.26459232,695.09,693.66,3.11494134]
[1736716885821,0.26459232,695.08,693.66,3.11494134]
[1736716886017,0.26459232,695.07,693.66,3.11494134]
[1736716886219,0.26459232,695.06,693.67,2.99884964]
[1736716886420,0.26459232,695.05,693.69,0.28831322]
[1736716886619,0.26459232,695.04,693.69,0.28831322]
[1736716886819,0.26459232,695.03,693.69,0.28831322]
[1736716887019,1.07092606,695.15,693.69,0.28831322]
[1736716887223,0.26459462,695.14,693.69,0.28831322]
[1736716887520,0.26459462,695.14,693.69,3.28716286]
[1736716887721,0.26459462,695.14,693.7,2.82661565]
[1736716888119,0.26459462,695.14,693.72,0.28830075]
[1736716889319,0.26459462,695.14,693.72,1.37297055]
[1736716889516,0.26459462,695.14,693.72,3.1149164]
[1736716889822,0.26459372,695.13,693.72,0.28830075]
[1736716890020,0.26459372,695.12,693.72,0.28830075]
[1736716890217,0.26459372,695.11,693.72,0.28830075]
[1736716890421,0.26459372,695.1,693.72,0.28830075]
[1736716890618,0.26459372,695.09,693.72,0.28830075]
[1736716890821,1.07092606,695.14,693.72,0.28830075]
[1736716891019,0.26459394,695.13,693.72,0.28830075]
[1736716891824,0.26459394,695.12,693.72,0.28830075]
[1736716892025,0.26459394,695.11,693.72,0.28830075]
[1736716892327,0.26459394,695.1,693.72,0.28830075]
[1736716892527,0.26459031,695.09,693.72,0.28830075]
[1736716892725,0.26459031,695.16,693.72,0.28830075]
[1736716892922,0.26458866,695.15,693.72,0.28830075]
[1736716893126,0.26458866,695.14,693.72,0.28830075]
[1736716893326,0.26458317,695.16,693.72,0.28830075]
[1736716893621,0.26458317,695.15,693.72,0.28830075]
[1736716893821,0.26458317,695.14,693.72,0.28830075]
[1736716894026,0.26458317,695.13,693.72,0.28830075]
[1736716894228,0.26458317,695.12,693.72,0.28830075]
[1736716894422,0.26458317,695.11,693.72,0.28830075]
[1736716894622,0.26458317,695.1,693.72,0.28830075]
[1736716894827,0.26458317,695.09,693.72,0.28830075]
[1736716895029,1.07092606,695.17,693.72,0.28830075]
[1736716895225,1.33551203,695.16,693.72,0.28830075]
[1736716895429,0.26458597,695.15,693.72,0.28830075]
[1736716896131,1.33551203,695.15,693.72,0.28830075]
[1736716896329,0.26458597,695.14,693.72,0.28830075]
[1736716897828,1.07092606,695.13,693.72,0.28830075]
[1736716898030,0.26458962,695.12,693.72,0.28830075]
[1736716898830,1.07092606,695.1,693.72,0.28830075]
[1736716899030,0.26458962,695.09,693.72,0.28830075]
[1736716899627,1.07092606,695.09,693.72,0.28830075]
[1736716900632,1.07092606,695.28,693.72,0.28830075]
[1736716902230,1.07092606,695.27,693.72,0.28830075]
[1736716903029,1.07092606,695.26,693.72,0.28830075]
[1736716904131,1.07092606,695.25,693.72,0.28830075]
[1736716906326,1.07092606,695.24,693.72,0.28830075]
[1736716907127,1.07092606,695.32,693.72,0.28830075]
[1736716908232,1.07092606,695.31,693.72,0.28830075]
[1736716909226,1.07092606,695.28,693.72,0.28830075]
[1736716910135,1.07092606,695.19,693.72,0.28830075]
[1736716912136,1.07092606,695.16,693.72,0.28830075]
[1736716913135,1.07092606,695.14,693.72,0.28830075]
[1736716913734,1.07092606,695.13,693.72,0.28830075]
[1736716914735,1.07092606,695.11,693.72,0.28830075]
[1736716915235,1.07092606,695.13,693.72,0.28830075]
[1736716916335,1.07092606,695.12,693.72,0.28830075]
[1736716917033,1.07092606,695.09,693.72,0.28830075]
[1736716918932,0.26457541,695.08,693.72,0.28830075]
[1736716919235,1.07092606,695.09,693.72,0.28830075]
[1736716919736,1.07092606,695.0,693.73,1.29388509]
[1736716920038,1.07092606,695.0,693.74,0.28829244]
[1736716920735,1.07092606,694.96,693.74,0.28829244]
[1736716921530,1.50341833,695.34,693.74,0.28829244]
[1736716921531,1.07092606,694.98,693.74,0.28829244]
[1736716922132,0.26461715,694.97,693.74,0.28829244]
[1736716922537,1.07092606,694.95,693.74,0.28829244]
[1736716922739,0.26461715,694.94,693.74,6.10499382]
[1736716922934,0.26461715,694.94,693.75,1.7390977]
[1736716923534,1.07092606,694.88,693.75,1.7390977]
[1736716924034,1.07092606,694.88,693.74,0.28829244]
[1736716924433,0.77165865,695.54,693.74,0.28829244]
[1736716924434,1.07092606,694.92,693.74,0.28829244]
[1736716925638,2.18647404,695.46,693.74,0.28829244]
[1736716925639,1.07092606,694.93,693.74,0.28829244]
[1736716926937,1.07092606,694.95,693.74,0.28829244]
[1736716927136,0.2646375,694.94,693.74,0.28829244]
[1736716927334,1.07092606,694.95,693.74,0.28829244]
[1736716927733,0.26463741,694.94,693.74,0.28829244]
[1736716928238,1.07092606,694.98,693.74,0.28829244]
[1736716928439,0.26463494,694.97,693.74,0.28829244]
[1736716929139,1.07092606,694.99,693.74,0.28829244]
[1736716929340,0.26462799,694.98,693.74,0.28829244]
[1736716930141,1.33555405,694.98,693.74,0.28829244]
[1736716930337,0.26462799,694.97,693.74,0.28829244]
[1736716931337,1.07092606,694.99,693.74,0.28829244]
[1736716931535,0.26462952,694.98,693.74,0.28829244]
[1736716932035,1.07092606,694.99,693.74,0.28829244]
[1736716932843,1.07092606,695.04,693.74,3.28013264]
[1736716933045,0.26459881,695.03,693.75,2.82684436]
[1736716933242,0.26459881,695.03,693.76,0.28828413]
[1736716934044,0.26459881,695.02,693.76,0.28828413]
[1736716934242,0.26459881,695.01,693.76,0.28828413]
[1736716934442,1.07092606,695.05,693.76,0.28828413]
[1736716934643,0.26459833,695.04,693.76,0.28828413]
[1736716935044,0.26459833,695.04,693.76,3.28012433]
[1736716935244,0.26459833,695.04,693.77,2.82684436]
[1736716935545,0.26459997,695.03,693.78,0.28827582]
[1736716935745,0.26459997,695.02,693.78,0.28827582]
[1736716935945,0.26459997,695.01,693.78,0.28827582]
[1736716936142,0.26459997,695.0,693.78,0.28827582]
[1736716936343,1.07092606,695.05,693.78,3.28011602]
[1736716936539,1.07092606,695.03,693.79,2.82684436]
[1736716936745,0.2646058,695.02,693.8,0.28826751]
[1736716937645,0.2646058,695.02,693.8,3.28010771]
[1736716937845,0.2646058,695.01,693.81,2.82684436]
[1736716938042,1.07092606,695.04,693.81,2.82684436]
[1736716938248,0.26460198,695.03,693.82,0.2882592]
[1736716939048,0.26460198,695.03,693.82,3.2800994]
[1736716939242,0.26460198,695.03,693.83,2.82684436]
[1736716940449,1.33552804,695.03,693.84,2.9918402]
[1736716940645,0.26460198,695.02,693.85,1.7390977]
[1736716940850,0.26461577,695.01,693.85,1.7390977]
[1736716941051,0.26461577,695.0,693.85,1.7390977]
[1736716941352,0.26461577,694.99,693.85,1.7390977]
[1736716941552,0.26462462,694.98,693.85,1.7390977]
[1736716941746,0.26462462,694.97,693.85,1.7390977]
[1736716941944,0.26462462,694.96,693.85,1.7390977]
[1736716942147,0.26462462,694.95,693.82,0.2882592]
[1736716942345,0.26462462,694.94,693.82,0.2882592]
[1736716942645,1.07092606,694.96,693.82,0.2882592]
[1736716942853,0.26462993,694.95,693.82,0.2882592]
[1736716944246,1.33555599,694.95,693.82,0.2882592]
[1736716944450,0.26462993,694.94,693.82,0.2882592]
[1736716945553,0.26462993,694.93,693.82,0.2882592]
[1736716945748,1.07092606,694.96,693.82,0.2882592]
[1736716945947,0.26463212,694.95,693.82,0.2882592]
[1736716946951,1.33555818,694.95,693.82,0.2882592]
[1736716947151,0.26463212,694.94,693.82,0.2882592]
[1736716948146,1.07092606,694.96,693.82,0.2882592]
[1736716948353,0.26462753,694.95,693.82,0.2882592]
[1736716948853,1.07092606,694.96,693.82,0.2882592]
[1736716949051,0.26462752,694.95,693.82,0.2882592]
[1736716949252,1.33555358,694.95,693.82,0.2882592]
[1736716949554,0.26462752,694.94,693.82,0.2882592]
[1736716949754,0.26463242,694.93,693.82,0.2882592]
[1736716949947,0.26463242,694.92,693.82,0.2882592]
[1736716950151,0.26463242,694.91,693.82,0.2882592]
[1736716950348,0.26463242,694.9,693.82,0.2882592]
[1736716950547,1.07092606,694.94,693.82,0.2882592]
[1736716950748,0.26464157,694.93,693.82,0.2882592]
[1736716951254,1.07092606,694.89,693.82,0.2882592]
[1736716951956,0.26464242,694.88,693.82,0.2882592]
[1736716952255,1.33556848,694.88,693.82,0.2882592]
[1736716952456,1.07092606,694.88,693.82,0.2882592]
[1736716953458,1.07092606,694.87,693.82,0.2882592]
[1736716954852,1.07092606,694.88,693.82,0.2882592]
[1736716955258,0.26467322,694.87,693.82,0.2882592]
[1736716956258,1.07092606,694.82,693.82,0.2882592]
[1736716957963,1.07092606,694.88,693.82,0.2882592]
[1736716959762,1.50366735,695.15,693.82,0.2882592]
[1736716959763,1.07092606,694.93,693.82,0.2882592]
[1736716959964,0.26466915,694.92,693.82,0.2882592]
[1736716961160,1.07092606,694.94,693.82,0.2882592]
[1736716961359,0.26466934,694.93,693.82,0.2882592]
[1736716961963,0.26466934,694.92,693.82,0.2882592]
[1736716962166,1.07092606,694.95,693.82,0.2882592]
[1736716962365,0.26467015,694.94,693.82,0.2882592]
[1736716963262,1.07092606,694.95,693.82,0.2882592]
[1736716963768,0.26466938,694.94,693.82,0.2882592]
[1736716963962,0.26466938,694.93,693.82,0.2882592]
[1736716964164,1.07092606,694.98,693.82,0.2882592]
[1736716964362,0.2646693,694.97,693.82,0.2882592]
[1736716964769,1.33559536,694.97,693.82,0.2882592]
[1736716964969,0.2646693,694.96,693.82,0.2882592]
[1736716965363,1.07092606,694.97,693.82,0.2882592]
[1736716965562,1.33559532,694.96,693.82,0.2882592]
[1736716965866,0.26466926,694.95,693.82,0.2882592]
[1736716966168,1.07092606,694.96,693.82,0.2882592]
[1736716966368,0.2646696,694.95,693.82,0.2882592]
[1736716966568,1.07092606,694.94,693.82,0.2882592]
[1736716967770,1.50366735,695.15,693.82,0.2882592]
[1736716967771,1.07092606,695.06,693.82,0.2882592]
[1736716967970,0.55242823,695.05,693.82,0.2882592]
[1736716968171,0.28775322,695.04,693.82,0.2882592]
[1736716968772,1.07092606,695.03,693.82,0.2882592]
[1736716969175,0.2877615,695.02,693.82,0.2882592]
[1736716971369,1.35868756,695.02,693.82,0.2882592]
[1736716972172,1.07092606,695.01,693.82,0.2882592]
[1736716972573,0.26470851,695.0,693.82,0.2882592]
[1736716973176,1.07092606,694.96,693.82,0.2882592]
[1736716973376,0.28779048,694.95,693.82,0.2882592]
[1736716974177,1.07092606,694.94,693.82,0.2882592]
[1736716974379,0.28779877,694.93,693.82,0.2882592]
[1736716975481,1.35872483,694.93,693.82,0.2882592]
[1736716976576,0.26472105,694.92,693.82,0.2882592]
[1736716976880,0.28780705,694.91,693.82,0.2882592]
[1736716977081,0.26472105,694.9,693.82,0.2882592]
[1736716977680,1.07092606,694.82,693.82,0.2882592]
[1736716977978,0.26472105,694.81,693.82,0.2882592]
[1736716978583,1.07092606,694.72,693.82,0.2882592]
[1736716978783,0.26472105,694.71,693.82,0.2882592]
[1736716979985,0.26472105,694.7,693.82,0.2882592]
[1736716980179,0.26472105,694.69,693.82,0.2882592]
[1736716980381,1.07092606,694.73,693.82,0.2882592]
[1736716980585,0.26472934,694.72,693.82,0.2882592]
[1736716981084,0.26472934,694.71,693.82,0.2882592]
[1736716981284,0.26472934,694.7,693.82,0.2882592]
[1736716981481,1.07092606,694.74,693.82,0.2882592]
[1736716981682,0.26473188,694.73,693.82,0.2882592]
[1736716982482,0.26473188,694.73,693.19,2.82862933]
[1736716982683,0.26473188,694.72,693.21,0.28851286]
[1736716982880,0.26473188,694.71,693.21,0.28851286]
[1736716983084,0.26473188,694.7,693.21,1.37581825]
[1736716983284,0.26473188,694.69,693.21,3.11714219]
[1736716983486,0.28780705,694.91,693.21,3.11714219]
[1736716983487,1.07092606,694.73,693.21,3.11714219]
[1736716983983,0.26472964,694.72,693.21,3.11714219]
[1736716984184,0.26472964,694.72,693.22,2.99789059]
[1736716984386,0.26472964,694.72,693.24,0.28850037]
[1736716984585,0.26472964,694.71,693.24,0.28850037]
[1736716984785,1.07092606,694.76,693.24,0.28850037]
[1736716985084,0.26472883,694.75,693.24,0.28850037]
[1736716986387,0.26472883,694.75,693.24,3.28639096]
[1736716986687,0.26473248,694.74,693.25,2.82862933]
[1736716986882,0.26473248,694.74,693.27,0.28848789]
[1736716987681,0.26473248,694.73,693.27,0.28848789]
[1736716988085,0.26473248,694.73,693.27,1.37579328]
[1736716988287,0.26473248,694.73,693.27,3.11711722]
[1736716988686,1.07092606,694.71,693.27,3.11711722]
[1736716988886,0.26473248,694.7,693.27,3.11711722]
[1736716989086,0.26473248,694.7,693.28,2.99789059]
[1736716989287,0.26473248,694.7,693.29,3.11710889]
[1736716989587,1.33565854,694.7,693.3,0.2884754]
[1736716989789,0.26473248,694.69,693.3,0.2884754]
[1736716990584,0.26473248,694.69,693.3,3.28636599]
[1736716990885,0.26473248,694.69,693.31,2.82862933]
[1736716991082,0.26473248,694.68,693.32,0.28846708]
[1736716991282,0.26473248,694.67,693.32,0.28846708]
[1736716991485,0.26473248,694.66,693.32,0.28846708]
[1736716991787,1.07092606,694.71,693.32,0.28846708]
[1736716991982,0.26474154,694.7,693.32,0.28846708]
[1736716992488,0.26474154,694.7,693.32,3.28635767]
[1736716992688,0.26474154,694.7,693.33,2.82862933]
[1736716992888,1.07092606,694.74,693.33,2.82862933]
[1736716992889,0.26474154,694.69,693.34,0.28845876]
[1736716993088,1.07092606,694.74,693.34,0.28845876]
[1736716993289,0.26473262,694.73,693.34,0.28845876]
[1736716994890,0.26473181,694.72,693.34,3.28634935]
[1736716995088,0.26473181,694.72,693.35,2.82862933]
[1736716995489,1.07092606,694.75,693.36,0.28845044]
[1736716995790,0.26472149,694.74,693.36,0.28845044]
[1736716996486,0.26472149,694.73,693.36,3.28634103]
[1736716996688,0.26472149,694.72,693.37,2.82862933]
[1736716996886,1.07092606,694.84,693.38,0.28844212]
[1736716997085,1.07092606,694.82,693.38,0.28844212]
[1736716997291,0.26472274,694.81,693.38,0.28844212]
[1736716997493,1.07092606,694.82,693.38,0.28844212]
[1736716997692,0.26472188,694.81,693.38,0.28844212]
[1736716997992,0.26472188,694.81,693.38,3.28633271]
[1736716998184,0.26472188,694.81,693.39,2.82862933]
[1736716998389,0.26472188,694.81,693.4,0.2884338]
[1736716999792,0.26472188,694.81,693.4,3.28632439]
[1736716999995,0.26472188,694.81,693.41,2.82862933]
[1736717000197,0.26472188,694.81,693.42,0.28842548]
[1736717000389,1.07092606,694.82,693.42,0.28842548]
[1736717000591,1.07092606,694.78,693.42,0.28842548]
[1736717000896,0.26472131,694.77,693.42,0.28842548]
[1736717001692,1.33564737,694.77,693.42,0.28842548]
[1736717001893,0.26472131,694.76,693.42,3.28631607]
[1736717002093,0.26472131,694.76,693.43,2.82862933]
[1736717002293,0.26472131,694.76,693.44,0.28841716]
[1736717003694,1.07092606,694.75,693.44,0.28841716]
[1736717003892,0.26472131,694.74,693.44,3.28630775]
[1736717004198,0.26472131,694.74,693.45,2.82862933]
[1736717004397,0.26472131,694.74,693.46,0.28840884]
[1736717004597,1.07092606,694.65,693.46,0.28840884]
[1736717005391,1.07092606,694.64,693.46,3.28629943]
[1736717005694,1.07092606,694.64,693.47,2.82862933]
[1736717005895,1.07092606,694.64,693.48,0.28840053]
[1736717006393,1.07092606,694.62,693.48,0.28840053]
[1736717006698,1.07092606,694.62,693.48,3.28629112]
[1736717006997,1.07092606,694.62,693.49,2.82862933]
[1736717007199,1.07092606,694.56,693.49,1.74132394]
[1736717007498,1.07092606,694.56,693.49,2.82927825]
[1736717007998,1.07092606,694.55,693.49,2.82927825]
[1736717008190,1.07092606,694.55,693.5,2.99789059]
[1736717008395,1.07092606,694.55,693.51,1.74132394]
[1736717008790,1.07092606,694.55,693.51,2.82934243]
[1736717009199,1.07092606,694.55,693.52,2.99789059]
[1736717009398,1.07092606,694.55,693.53,2.82934243]
[1736717009699,1.07092606,694.55,693.53,1.74132394]
[1736717009899,1.07092606,694.57,693.53,1.74132394]
[1736717010703,1.07092606,694.56,693.53,1.74132394]
[1736717011104,1.07092606,694.56,693.48,0.28840053]
[1736717011800,1.07092606,694.57,693.48,0.28840053]
[1736717012911,1.28511127,694.99,693.48,0.28840053]
[1736717012912,1.07092606,694.68,693.48,0.28840053]
[1736717016302,1.07092606,694.69,693.48,0.28840053]
[1736717017909,1.07092606,694.7,693.48,0.28840053]
[1736717019210,1.07092606,694.69,693.48,0.28840053]
[1736717019508,1.07092606,694.69,693.48,1.3765139]
[1736717019708,1.07092606,694.69,693.48,3.11920483]
[1736717021408,1.07092606,694.69,693.49,3.00011307]
[1736717021610,1.07092606,694.69,693.5,3.11919651]
[1736717021813,1.07092606,694.69,693.51,0.28838805]
[1736717022511,1.07092606,694.7,693.51,0.28838805]
[1736717023115,1.07092606,694.7,693.51,3.28850112]
[1736717023315,1.07092606,694.7,693.52,2.8308043]
[1736717023513,1.07092606,694.67,693.53,0.28837973]
[1736717024515,1.07092606,694.67,693.53,3.2884928]
[1736717024709,1.07092606,694.67,693.54,2.8308043]
[1736717024911,0.88339385,694.9,693.54,2.8308043]
[1736717024912,1.07092606,694.68,693.54,2.8308043]
[1736717025713,1.07092606,694.68,693.55,3.00011307]
[1736717025914,1.07092606,694.68,693.56,2.8308043]
[1736717026214,1.07092606,694.66,693.56,2.8308043]
[1736717027014,1.07092606,694.68,693.56,2.8308043]
[1736717027309,1.07092606,694.68,693.57,3.00011307]
[1736717027514,1.07092606,694.68,693.58,2.8308043]
[1736717029610,1.07092606,694.68,693.59,3.00011307]
[1736717029815,1.07092606,694.68,693.6,2.8308043]
[1736717030215,1.07092606,694.68,693.6,1.74269093]
[1736717030617,0.26473286,694.67,693.6,1.74269093]
[1736717031321,1.07092606,694.63,693.6,1.74269093]
[1736717031517,1.07092606,694.63,693.53,0.28837973]
[1736717031922,1.07092606,694.61,693.53,0.28837973]
[1736717033718,1.07092606,694.6,693.53,0.28837973]
[1736717034618,0.88339385,694.9,693.53,0.28837973]
[1736717034619,1.07092606,694.56,693.53,0.28837973]
[1736717035525,1.07092606,694.57,693.53,0.28837973]
[1736717036627,1.07092606,694.58,693.53,0.28837973]
[1736717037323,1.07092606,694.59,693.53,0.28837973]
[1736717038422,1.07092606,694.61,693.53,0.28837973]
[1736717039328,1.07092606,694.63,693.53,0.28837973]
[1736717040632,0.88339385,694.9,693.53,0.28837973]
[1736717040633,1.07092606,694.64,693.53,0.28837973]
[1736717041833,1.07092606,694.63,693.53,0.28837973]
[1736717042629,1.07092606,694.64,693.53,0.28837973]
[1736717044331,0.26475791,694.63,693.53,0.28837973]
[1736717045236,1.07092606,694.6,693.53,0.28837973]
[1736717046936,1.07092606,694.61,693.53,0.28837973]
[1736717047137,0.26475906,694.6,693.53,0.28837973]
[1736717047634,1.07092606,694.61,693.53,0.28837973]
[1736717051535,0.26475836,694.6,693.53,0.28837973]
[1736717051736,1.07092606,694.62,693.53,0.28837973]
[1736717051937,0.26475798,694.61,693.53,0.28837973]
[1736717053433,1.33568404,694.61,693.53,0.28837973]
[1736717053637,1.07092606,694.61,693.53,0.28837973]
[1736717055940,0.26476281,694.6,693.53,0.28837973]
[1736717056137,1.33568887,694.6,693.53,0.28837973]
[1736717056341,1.07092606,694.6,693.53,0.28837973]
[1736717057136,0.88247734,694.9,693.53,0.28837973]
[1736717057137,1.07092606,694.59,693.53,0.28837973]
[1736717058145,1.07092606,694.58,693.53,0.28837973]
[1736717059042,1.07092606,694.76,693.53,0.28837973]
[1736717059043,1.07092606,694.57,693.53,0.28837973]
[1736717061743,1.07092606,694.59,693.53,0.28837973]
[1736717063747,1.07092606,694.58,693.53,0.28837973]
[1736717064647,1.07092606,694.54,693.53,0.28837973]
[1736717065643,1.07092606,694.53,693.53,0.28837973]
[1736717066647,1.07092606,694.5,693.53,0.28837973]
[1736717067548,0.88247734,694.9,693.53,0.28837973]
[1736717067549,1.07092606,694.48,693.53,0.28837973]
[1736717068746,0.88247734,694.9,693.53,0.28837973]
[1736717068747,1.07092606,694.44,693.53,0.28837973]
[1736717069550,1.07092606,694.47,693.53,0.28837973]
[1736717071450,2.16758861,694.9,693.53,0.28837973]
[1736717071451,1.07092606,694.48,693.53,0.28837973]
[1736717072347,1.07092606,694.49,693.53,0.28837973]
[1736717075352,1.07092606,694.5,693.53,0.28837973]
[1736717078055,1.07092606,694.48,693.53,0.28837973]
[1736717079355,1.07092606,694.49,693.53,0.28837973]
[1736717080252,1.07092606,694.68,693.53,0.28837973]
[1736717080253,1.07092606,694.48,693.53,0.28837973]
[1736717081049,1.07092606,694.49,693.53,0.28837973]
[1736717082956,1.07092606,694.5,693.53,0.28837973]
[1736717085355,1.07092606,694.7,693.53,0.28837973]
[1736717085356,1.07092606,694.51,693.53,0.28837973]
[1736717086957,1.07092606,694.54,693.53,0.28837973]
[1736717089462,1.07092606,694.53,693.53,0.28837973]
[1736717092359,1.07092606,694.56,693.53,0.28837973]
[1736717093358,0.88247734,694.9,693.53,0.28837973]
[1736717093359,1.07092606,694.62,693.53,0.28837973]
[1736717095356,1.07092606,694.63,693.53,0.28837973]
[1736717096561,1.07092606,694.67,693.53,0.28837973]
[1736717097361,1.50416563,695.01,693.53,0.28837973]
[1736717097362,1.07092606,694.69,693.53,0.28837973]
[1736717098159,1.07092606,694.7,693.53,0.28837973]
[1736717099461,1.07092606,694.71,693.53,0.28837973]
[1736717100260,1.07092606,694.72,693.53,0.28837973]
[1736717100461,0.26472483,694.71,693.53,0.28837973]
[1736717100855,1.07092606,694.72,693.53,0.28837973]
[1736717101060,0.2647206,694.71,693.53,0.28837973]
[1736717101457,1.33564666,694.71,693.53,0.28837973]
[1736717101661,0.2647206,694.7,693.53,0.28837973]
[1736717103163,1.07092606,694.72,693.53,0.28837973]
[1736717103462,0.26471797,694.71,693.53,0.28837973]
[1736717103857,1.07092606,694.72,693.53,0.28837973]
[1736717104061,0.26472033,694.71,693.53,0.28837973]
[1736717105564,0.26472033,694.7,693.53,0.28837973]
[1736717105764,0.26472033,694.69,693.53,0.28837973]
[1736717105960,1.07092606,694.73,693.53,0.28837973]
[1736717106159,0.26471977,694.72,693.53,0.28837973]
[1736717107959,0.26471751,694.71,693.53,0.28837973]
[1736717108163,0.26471751,694.7,693.53,0.28837973]
[1736717108364,1.07092606,694.74,693.53,0.28837973]
[1736717108566,0.26471751,694.73,693.53,0.28837973]
[1736717108761,1.07092606,694.75,693.53,0.28837973]
[1736717110165,0.28780705,694.91,693.53,0.28837973]
[1736717110166,0.26471491,694.74,693.53,0.28837973]
[1736717110365,0.26471491,694.76,693.53,0.28837973]
[1736717110560,0.26471491,694.75,693.53,0.28837973]
[1736717110767,1.07092606,694.77,693.53,0.28837973]
[1736717110962,0.2647072,694.76,693.53,0.28837973]
[1736717111367,0.2647072,694.76,693.53,1.37817228]
[1736717111668,0.2647072,694.75,693.53,3.12309703]
[1736717111866,0.2647072,694.74,693.53,3.12309703]
[1736717112061,0.2647072,694.73,693.53,3.12309703]
[1736717112264,0.26471101,694.72,693.54,3.00011307]
[1736717112461,1.07092606,694.78,693.55,2.8347173]
[1736717112762,0.26471105,694.77,693.55,1.74492475]
[1736717113467,0.26471105,694.76,693.55,1.74492475]
[1736717113666,0.26471105,694.75,693.55,1.74492475]
[1736717113865,1.07092606,694.8,693.55,1.74492475]
[1736717114168,1.33563852,694.79,693.55,1.74492475]
[1736717114368,0.26471246,694.78,693.55,1.74492475]
[1736717114767,0.26471246,694.78,693.53,0.28837973]
[1736717114968,1.07092606,694.79,693.53,0.28837973]
[1736717115170,0.26471227,694.78,693.53,0.28837973]
[1736717117776,0.26471212,694.77,693.53,0.28837973]
[1736717117970,0.26471212,694.76,693.53,0.28837973]
[1736717118170,0.26471212,694.75,693.53,0.28837973]
[1736717118374,1.07092606,694.79,693.53,0.28837973]
[1736717118572,0.2647113,694.78,693.53,0.28837973]
[1736717119078,1.33563736,694.78,693.53,0.28837973]
[1736717119279,0.2647113,694.77,693.53,0.28837973]
[1736717119876,1.07092606,694.76,693.53,0.28837973]
[1736717120072,0.2647113,694.75,693.53,0.28837973]
[1736717120979,1.07092606,694.74,693.53,0.28837973]
[1736717121171,0.2647113,694.73,693.53,0.28837973]
[1736717121879,1.33563736,694.73,693.53,0.28837973]
[1736717122071,0.2647113,694.72,693.53,0.28837973]
[1736717122880,1.33563736,694.72,693.53,0.28837973]
[1736717123079,1.07092606,694.72,693.53,0.28837973]
[1736717123777,1.07092606,694.7,693.53,0.28837973]
[1736717124778,1.07092606,694.69,693.53,0.28837973]
[1736717125785,1.07092606,694.67,693.53,0.28837973]
[1736717126582,1.07092606,694.66,693.53,0.28837973]
[1736717127587,1.07092606,694.62,693.53,0.28837973]
[1736717128487,1.07092606,694.61,693.53,0.28837973]
[1736717129489,1.07092606,694.6,693.53,0.28837973]
[1736717131293,1.07092606,694.58,693.53,0.28837973]
[1736717132693,1.07092606,694.59,693.53,0.28837973]
[1736717133595,1.07092606,694.65,693.53,0.28837973]
[1736717135695,1.07092606,694.66,693.53,0.28837973]
[1736717137699,1.07092606,694.64,693.53,0.28837973]
[1736717138494,1.07092606,694.63,693.53,0.28837973]
[1736717140098,0.28781533,694.89,693.53,0.28837973]
[1736717140099,1.07092606,694.65,693.53,0.28837973]
[1736717141204,1.07092606,694.69,693.53,0.28837973]
[1736717142306,1.07092606,694.7,693.53,0.28837973]
[1736717143307,1.07092606,694.67,693.53,0.28837973]
[1736717146213,1.07092606,694.63,693.53,0.28837973]
[1736717150713,1.07092606,694.58,693.53,0.28837973]
[1736717151612,1.07092606,694.57,693.53,0.28837973]
[1736717155412,1.07092606,694.56,693.53,0.28837973]
[1736717156217,1.07092606,694.57,693.53,0.28837973]
[1736717157420,1.07092606,694.56,693.53,0.28837973]
[1736717158820,1.07092606,694.55,693.53,0.28837973]
[1736717159717,1.07092606,694.57,693.53,0.28837973]
[1736717160515,1.07092606,694.58,693.53,0.28837973]
[1736717161621,1.07092606,694.79,693.53,0.28837973]
[1736717162916,0.28781533,694.89,693.53,0.28837973]
[1736717162917,1.07092606,694.86,693.53,0.28837973]
[1736717163926,0.28781533,694.89,693.53,0.28837973]
[1736717166026,0.26467903,694.88,693.53,0.28837973]
[1736717167024,1.07092606,694.81,693.53,0.28837973]
[1736717168122,0.28781533,694.89,693.53,0.28837973]
[1736717168123,1.07092606,694.85,693.53,0.28837973]
[1736717168929,1.35874139,694.89,693.53,0.28837973]
[1736717169127,0.26465574,694.88,693.53,0.28837973]
[1736717170227,0.28781533,694.89,693.53,0.28837973]
[1736717196643,0.28781533,694.89,693.53,1.3760152]
[1736717196845,0.28781533,694.89,693.53,3.11816473]
[1736717198448,0.28781533,694.89,693.54,3.00011307]
[1736717198645,0.28781533,694.89,693.56,0.28836726]
[1736717204852,1.07092606,695.04,693.56,0.28836726]
[1736717205252,1.07092606,695.04,693.56,3.11468782]
[1736717205552,1.07092606,695.25,693.56,3.11468782]
[1736717205553,1.07092606,695.01,693.63,1.29388509]
[1736717205752,1.07092606,695.01,693.65,0.28832984]
[1736717206253,1.07092606,695.08,693.67,1.29388509]
[1736717206452,1.07092606,695.08,693.69,0.28831322]
[1736717207554,1.07092606,695.09,693.69,0.28831322]
[1736717207753,0.26457313,695.08,693.69,0.28831322]